Workbook

Sheet 01.04
A1: 2015-04-01
A2: Лаборант, оператор | B2: Заказчик, адрес строительного объекта | C2: Время | D2: Дата формования | E2: Класс бетонной смеси | F2: Шифр рецепта | G2: Температура бет.смеси, ºС | H2: ОК, см | I2: Плотность бет/см в уплотненном состоянии, кг/м3 | J2: дата испытаний | K2: Возраст, сут | L2: Масса образца, г | M2: Линейные размеры образца, см | P2: Площадь, см² | Q2: Плотность образца, г/см³ | R2: Средняя плотность серии образцов, г/см³ | S2: Разрушающая нагрузка в Кн | T2: Прочность бетона, приведенная к базовому размеру образца, Мпа | U2: Средняя прочность серии образцов, Мпа | V2: Требуемая прочность, Мпа | W2: % от требуемой прочности
M4: Длина | N4: Ширина | O4: Высота
A7: 1 | B7: 2 | C7: 3 | D7: 4 | E7: 5 | F7: 6 | G7: 7 | H7: 8 | I7: 9 | J7: 10 | K7: 11 | L7: 12 | M7: 13 | P7: 14 | Q7: 15 | R7: 16 | S7: 17 | T7: 18 | U7: 19 | V7: 20 | W7: 21
A8: Матвиенко О.А. | B8: Строймонолит | C8: 09:15:00 | D8: =A1 -> 2015-04-01 | E8: В25 | F8: Б07.1.02.1-15 | G8: 18 | H8: 19 | I8: 2.338 | J8: =$D$8+$K$8 -> 2015-04-08 | K8: 7 | L8: 2348 | M8: 10 | N8: 10 | O8: 10 | P8: =M8*N8 -> 100 | Q8: =L8/(M8*N8*O8) -> 2.348 | R8: =AVERAGE(Q8:Q9) -> 2.352 | S8: 315 | T8: =((S8*10)/P8)*0.95 -> 29.925 | U8: =(SUM(T8:T9)/2) -> 29.3075 | V8: 32.1 | W8: =(U8*100)/V8 -> 91.30062305
A9: =A8 -> Матвиенко О.А. | B9: Строймонолит | C9: 09:15:00 | D9: 2015-04-01 | E9: В25 | F9: Б07.1.02.1-15 | G9: 18 | H9: 19 | I9: 2.338 | J9: 2015-04-08 | K9: 7 | L9: 2356 | M9: 10 | N9: 10 | O9: 10 | P9: =M9*N9 -> 100 | Q9: =L9/(M9*N9*O9) -> 2.356 | R9: =R8 -> 2.352 | S9: 302 | T9: =((S9*10)/P9)*0.95 -> 28.69 | U9: =(SUM(T9:T10)/2) -> 37.5725 | V9: =V8 -> 32.1 | W9: =W8 -> 91.30062305
A10: Прохоров С.Г. | B10: =B8 -> Строймонолит | C10: =C8 -> 09:15:00 | D10: =D9 -> 2015-04-01 | E10: =E9 -> В25 | F10: =F8 -> Б07.1.02.1-15 | G10: =G8 -> 18 | H10: =H8 -> 19 | I10: =I8 -> 2.338 | J10: =$D$8+$K$10 -> 2015-04-29 | K10: 28 | L10: 2346 | M10: 10 | N10: 10 | O10: 10 | P10: 100 | Q10: 2.346 | R10: =AVERAGE(Q10:Q11) -> 2.349 | S10: 489 | T10: 46.455 | U10: 47.215 | V10: =V8 -> 32.1 | W10: =(U10*100)/V10 -> 147.0872274
A11: =A10 -> Прохоров С.Г. | B11: =B8 -> Строймонолит | C11: =C8 -> 09:15:00 | D11: 2015-04-01 | E11: В25 | F11: =F8 -> Б07.1.02.1-15 | G11: =G8 -> 18 | H11: =H8 -> 19 | I11: =I8 -> 2.338 | J11: =J10 -> 2015-04-29 | K11: =K10 -> 28 | L11: 2352 | M11: 10 | N11: 10 | O11: 10 | P11: 100 | Q11: 2.352 | R11: =R10 -> 2.349 | S11: 505 | T11: 47.975 | U11: =(SUM(T11:T16)/2) -> 100.645335 | V11: =V10 -> 32.1 | W11: =W10 -> 147.0872274
A12: =A8 -> Матвиенко О.А. | B12: Монолитконтракт | C12: 09:15:00 | D12: =A1 -> 2015-04-01 | E12: В15 | F12: Б07.1.02.1-15 | G12: 18 | H12: 19 | I12: 2.338 | J12: =$D$8+$K$8 -> 2015-04-08 | K12: 7 | L12: 2348 | M12: 10 | N12: 10 | O12: 10 | P12: =M12*N12 -> 100 | Q12: =L12/(M12*N12*O12) -> 2.348 | R12: =AVERAGE(Q12:Q13) -> 2.352 | S12: 315 | T12: =((S12*10)/P12)*0.95 -> 29.925 | U12: =(SUM(T12:T13)/2) -> 29.3075 | V12: 12.94 | W12: =(U12*100)/V12 -> 226.4876352
A13: =A12 -> Матвиенко О.А. | B13: Монолитконтракт | C13: 09:15:00 | D13: 2015-04-01 | E13: В15 | F13: Б07.1.02.1-15 | G13: 18 | H13: 19 | I13: 2.338 | J13: 2015-04-08 | K13: 7 | L13: 2356 | M13: 10 | N13: 10 | O13: 10 | P13: =M13*N13 -> 100 | Q13: =L13/(M13*N13*O13) -> 2.356 | R13: =R12 -> 2.352 | S13: 302 | T13: =((S13*10)/P13)*0.95 -> 28.69 | U13: =(SUM(T13:T14)/2) -> 37.5725 | V13: =V12 -> 12.94 | W13: =W12 -> 226.4876352
A14: =A10 -> Прохоров С.Г. | B14: =B12 -> Монолитконтракт | C14: =C12 -> 09:15:00 | D14: =D13 -> 2015-04-01 | E14: В15 | F14: =F12 -> Б07.1.02.1-15 | G14: =G12 -> 18 | H14: =H12 -> 19 | I14: =I12 -> 2.338 | J14: =$D$8+$K$10 -> 2015-04-29 | K14: 28 | L14: 2346 | M14: 10 | N14: 10 | O14: 10 | P14: 100 | Q14: 2.346 | R14: =AVERAGE(Q14:Q15) -> 2.349 | S14: 489 | T14: 46.455 | U14: 47.215 | V14: =V12 -> 12.94 | W14: =(U14*100)/V14 -> 364.8763524
A15: =A14 -> Прохоров С.Г. | B15: =B12 -> Монолитконтракт | C15: =C12 -> 09:15:00 | D15: 2015-04-01 | E15: В15 | F15: =F12 -> Б07.1.02.1-15 | G15: =G12 -> 18 | H15: =H12 -> 19 | I15: =I12 -> 2.338 | J15: =J14 -> 2015-04-29 | K15: =K14 -> 28 | L15: 2352 | M15: 10 | N15: 10 | O15: 10 | P15: 100 | Q15: 2.352 | R15: =R14 -> 2.349 | S15: 505 | T15: 47.975 | U15: =(SUM(T15:T20)/2) -> 24.69594925 | V15: =V14 -> 12.94 | W15: =W14 -> 364.8763524
A16: =A8 -> Матвиенко О.А. | B16: Интерком | C16: 10:45:00 | D16: =A1 -> 2015-04-01 | E16: М75 | F16: Р75.02.86.-25 | G16: 12 | H16: 9 | I16: 745 | J16: =$D$8+$K$8 -> 2015-04-08 | K16: 7 | L16: 648 | M16: 7.07 | N16: 7.07 | O16: 7.07 | P16: =M16*N16 -> 49.9849 | Q16: =L16/(M16*N16*O16) -> 1.833651358 | R16: =AVERAGE(Q16:Q17) -> 1.96806253 | S16: 115 | T16: =S16/((P16*100)*0.085) -> 0.2706699776 | U16: =SUM(T16:T18)/3 -> 0.2973447001 | V16: 6.4 | W16: =(U16*100)/V16 -> 4.646010938
A17: =A16 -> Матвиенко О.А. | B17: Интерком | C17: 10:45:00 | D17: 2015-04-01 | E17: М75 | F17: Р75.02.86.-25 | G17: 12 | H17: 9 | I17: 745 | J17: 2015-04-08 | K17: 7 | L17: 743 | M17: 7.07 | N17: 7.07 | O17: 7.07 | P17: =M17*N17 -> 49.9849 | Q17: =L17/(M17*N17*O17) -> 2.102473702 | R17: =R16 -> 1.96806253 | S17: 126 | T17: =S17/((P17*100)*0.085) -> 0.2965601494 | U17: =U16 -> 0.2973447001 | V17: =V16 -> 6.4 | W17: =W16 -> 4.646010938
A18: =A16 -> Матвиенко О.А. | B18: =B16 -> Интерком | C18: =C16 -> 10:45:00 | D18: =D17 -> 2015-04-01 | E18: =E17 -> М75 | F18: =F16 -> Р75.02.86.-25 | G18: 12 | H18: 9 | I18: 745 | J18: 2015-04-08 | K18: 7 | L18: 715 | M18: 7.07 | N18: 7.07 | O18: 7.07 | P18: =M18*N18 -> 49.9849 | Q18: 2.023241854 | R18: =R16 -> 1.96806253 | S18: 138 | T18: 0.3248039732 | U18: =U16 -> 0.2973447001 | V18: =V16 -> 6.4 | W18: =W16 -> 4.646010938
A19: =A10 -> Прохоров С.Г. | B19: =B16 -> Интерком | C19: =C16 -> 10:45:00 | D19: 2015-04-01 | E19: М75 | F19: =F16 -> Р75.02.86.-25 | G19: =G16 -> 12 | H19: =H16 -> 9 | I19: =I16 -> 745 | J19: =$D$8+$K$10 -> 2015-04-29 | K19: 28 | L19: 834 | M19: 7.07 | N19: 7.07 | O19: 7.07 | P19: 49.9849 | Q19: 2.359977211 | R19: =AVERAGE(Q20:Q21) -> 1.95532884 | S19: 116 | T19: 0.2730236296 | U19: =SUM(T19:T21)/3 -> 0.2612553697 | V19: =V16 -> 6.4 | W19: =(U19*100)/V19 -> 4.082115152
A20: =A19 -> Прохоров С.Г. | B20: =B16 -> Интерком | C20: =C16 -> 10:45:00 | D20: 2015-04-01 | E20: М75 | F20: =F16 -> Р75.02.86.-25 | G20: =G16 -> 12 | H20: =H16 -> 9 | I20: =I16 -> 745 | J20: =J19 -> 2015-04-29 | K20: =K19 -> 28 | L20: 637 | M20: 7.07 | N20: 7.07 | O20: 7.07 | P20: 49.9849 | Q20: 1.80252456 | R20: =R19 -> 1.95532884 | S20: 107 | T20: 0.2518407618 | U20: =U19 -> 0.2612553697 | V20: =V19 -> 6.4 | W20: =W19 -> 4.082115152
A21: =A19 -> Прохоров С.Г. | B21: =B16 -> Интерком | C21: =C16 -> 10:45:00 | D21: 2015-04-01 | E21: М75 | F21: =F16 -> Р75.02.86.-25 | G21: =G16 -> 12 | H21: =H16 -> 9 | I21: =I16 -> 745 | J21: =J19 -> 2015-04-29 | K21: =K19 -> 28 | L21: 745 | M21: 7.07 | N21: 7.07 | O21: 7.07 | P21: 49.9849 | Q21: 2.10813312 | R21: =R19 -> 1.95532884 | S21: 110 | T21: 0.2589017177 | U21: =U19 -> 0.2612553697 | V21: =V19 -> 6.4 | W21: =W19 -> 4.082115152

Sheet 02.04
A1: 2015-04-02
A2: Лаборант, оператор | B2: Заказчик, адрес строительного объекта | C2: Время | D2: Дата формования | E2: Класс бетонной смеси | F2: Шифр рецепта | G2: Температура бет.смеси, ºС | H2: ОК, см | I2: Плотность бет/см в уплотненном состоянии, кг/м3 | J2: дата испытаний | K2: Возраст, сут | L2: Масса образца, г | M2: Линейные размеры образца, см | P2: Площадь, см² | Q2: Плотность образца, г/см³ | R2: Средняя плотность серии образцов, г/см³ | S2: Разрушающая нагрузка в Кн | T2: Прочность бетона, приведенная к базовому размеру образца, Мпа | U2: Средняя прочность серии образцов, Мпа | V2: Требуемая прочность, Мпа | W2: % от требуемой прочности
M4: Длина | N4: Ширина | O4: Высота
A7: 1 | B7: 2 | C7: 3 | D7: 4 | E7: 5 | F7: 6 | G7: 7 | H7: 8 | I7: 9 | J7: 10 | K7: 11 | L7: 12 | M7: 13 | P7: 14 | Q7: 15 | R7: 16 | S7: 17 | T7: 18 | U7: 19 | V7: 20 | W7: 21
A8: Сидоренко В.Г. | B8: Строймонолит | C8: 09:15:00 | D8: =A1 -> 2015-04-02 | E8: В25 | F8: Б07.1.02.1-15 | G8: 18 | H8: 19 | I8: 2.338 | J8: =$D$8+$K$8 -> 2015-04-09 | K8: 7 | L8: 2348 | M8: 10 | N8: 10 | O8: 10 | P8: =M8*N8 -> 100 | Q8: =L8/(M8*N8*O8) -> 2.348 | R8: =AVERAGE(Q8:Q9) -> 2.352 | S8: 315 | T8: =((S8*10)/P8)*0.95 -> 29.925 | U8: =(SUM(T8:T9)/2) -> 29.3075 | V8: 32.1 | W8: =(U8*100)/V8 -> 91.30062305
A9: =A8 -> Сидоренко В.Г. | B9: Строймонолит | C9: 09:15:00 | D9: 2015-04-02 | E9: В25 | F9: Б07.1.02.1-15 | G9: 18 | H9: 19 | I9: 2.338 | J9: 2015-04-09 | K9: 7 | L9: 2356 | M9: 10 | N9: 10 | O9: 10 | P9: =M9*N9 -> 100 | Q9: =L9/(M9*N9*O9) -> 2.356 | R9: =R8 -> 2.352 | S9: 302 | T9: =((S9*10)/P9)*0.95 -> 28.69 | U9: =(SUM(T9:T10)/2) -> 37.5725 | V9: =V8 -> 32.1 | W9: =W8 -> 91.30062305
A10: Галкин И.Б. | B10: =B8 -> Строймонолит | C10: =C8 -> 09:15:00 | D10: =D9 -> 2015-04-02 | E10: В25 | F10: =F8 -> Б07.1.02.1-15 | G10: =G8 -> 18 | H10: =H8 -> 19 | I10: =I8 -> 2.338 | J10: =$D$8+$K$10 -> 2015-04-30 | K10: 28 | L10: 2346 | M10: 10 | N10: 10 | O10: 10 | P10: 100 | Q10: 2.346 | R10: =AVERAGE(Q10:Q11) -> 2.349 | S10: 489 | T10: 46.455 | U10: 47.215 | V10: =V8 -> 32.1 | W10: =(U10*100)/V10 -> 147.0872274
A11: =A10 -> Галкин И.Б. | B11: =B8 -> Строймонолит | C11: =C8 -> 09:15:00 | D11: 2015-04-02 | E11: В25 | F11: =F8 -> Б07.1.02.1-15 | G11: =G8 -> 18 | H11: =H8 -> 19 | I11: =I8 -> 2.338 | J11: =J10 -> 2015-04-30 | K11: =K10 -> 28 | L11: 2352 | M11: 10 | N11: 10 | O11: 10 | P11: 100 | Q11: 2.352 | R11: =R10 -> 2.349 | S11: 505 | T11: 47.975 | U11: =(SUM(T11:T16)/2) -> 100.645335 | V11: =V10 -> 32.1 | W11: =W10 -> 147.0872274
A12: =A8 -> Сидоренко В.Г. | B12: Монолитконтракт | C12: 09:15:00 | D12: =A1 -> 2015-04-02 | E12: В15 | F12: Б07.1.02.1-15 | G12: 18 | H12: 19 | I12: 2.338 | J12: =$D$8+$K$8 -> 2015-04-09 | K12: 7 | L12: 2348 | M12: 10 | N12: 10 | O12: 10 | P12: =M12*N12 -> 100 | Q12: =L12/(M12*N12*O12) -> 2.348 | R12: =AVERAGE(Q12:Q13) -> 2.352 | S12: 315 | T12: =((S12*10)/P12)*0.95 -> 29.925 | U12: =(SUM(T12:T13)/2) -> 29.3075 | V12: 12.6 | W12: =(U12*100)/V12 -> 232.5992063
A13: =A12 -> Сидоренко В.Г. | B13: Монолитконтракт | C13: 09:15:00 | D13: 2015-04-02 | E13: В15 | F13: Б07.1.02.1-15 | G13: 18 | H13: 19 | I13: 2.338 | J13: 2015-04-09 | K13: 7 | L13: 2356 | M13: 10 | N13: 10 | O13: 10 | P13: =M13*N13 -> 100 | Q13: =L13/(M13*N13*O13) -> 2.356 | R13: =R12 -> 2.352 | S13: 302 | T13: =((S13*10)/P13)*0.95 -> 28.69 | U13: =(SUM(T13:T14)/2) -> 37.5725 | V13: =V12 -> 12.6 | W13: =W12 -> 232.5992063
A14: =A10 -> Галкин И.Б. | B14: =B12 -> Монолитконтракт | C14: =C12 -> 09:15:00 | D14: =D13 -> 2015-04-02 | E14: В15 | F14: =F12 -> Б07.1.02.1-15 | G14: =G12 -> 18 | H14: =H12 -> 19 | I14: =I12 -> 2.338 | J14: =$D$8+$K$10 -> 2015-04-30 | K14: 28 | L14: 2346 | M14: 10 | N14: 10 | O14: 10 | P14: 100 | Q14: 2.346 | R14: =AVERAGE(Q14:Q15) -> 2.349 | S14: 489 | T14: 46.455 | U14: 47.215 | V14: =V12 -> 12.6 | W14: =(U14*100)/V14 -> 374.7222222
A15: =A14 -> Галкин И.Б. | B15: =B12 -> Монолитконтракт | C15: =C12 -> 09:15:00 | D15: 2015-04-02 | E15: В15 | F15: =F12 -> Б07.1.02.1-15 | G15: =G12 -> 18 | H15: =H12 -> 19 | I15: =I12 -> 2.338 | J15: =J14 -> 2015-04-30 | K15: =K14 -> 28 | L15: 2352 | M15: 10 | N15: 10 | O15: 10 | P15: 100 | Q15: 2.352 | R15: =R14 -> 2.349 | S15: 505 | T15: 47.975 | U15: =(SUM(T15:T20)/2) -> 24.69594925 | V15: =V14 -> 12.6 | W15: =W14 -> 374.7222222
A16: =A8 -> Сидоренко В.Г. | B16: Интерком | C16: 10:45:00 | D16: =A1 -> 2015-04-02 | E16: М75 | F16: Р75.02.86.-25 | G16: 12 | H16: 9 | I16: 745 | J16: =$D$8+$K$8 -> 2015-04-09 | K16: 7 | L16: 648 | M16: 7.07 | N16: 7.07 | O16: 7.07 | P16: =M16*N16 -> 49.9849 | Q16: =L16/(M16*N16*O16) -> 1.833651358 | R16: =AVERAGE(Q16:Q17) -> 1.96806253 | S16: 115 | T16: =S16/((P16*100)*0.085) -> 0.2706699776 | U16: =SUM(T16:T18)/3 -> 0.2973447001 | V16: 6.4 | W16: =(U16*100)/V16 -> 4.646010938
A17: =A16 -> Сидоренко В.Г. | B17: Интерком | C17: 10:45:00 | D17: 2015-04-02 | E17: М75 | F17: Р75.02.86.-25 | G17: 12 | H17: 9 | I17: 745 | J17: 2015-04-09 | K17: 7 | L17: 743 | M17: 7.07 | N17: 7.07 | O17: 7.07 | P17: =M17*N17 -> 49.9849 | Q17: =L17/(M17*N17*O17) -> 2.102473702 | R17: =R16 -> 1.96806253 | S17: 126 | T17: =S17/((P17*100)*0.085) -> 0.2965601494 | U17: =U16 -> 0.2973447001 | V17: =V16 -> 6.4 | W17: =W16 -> 4.646010938
A18: =A16 -> Сидоренко В.Г. | B18: =B16 -> Интерком | C18: =C16 -> 10:45:00 | D18: =D17 -> 2015-04-02 | E18: М75 | F18: =F16 -> Р75.02.86.-25 | G18: 12 | H18: 9 | I18: 745 | J18: 2015-04-09 | K18: 7 | L18: 715 | M18: 7.07 | N18: 7.07 | O18: 7.07 | P18: =M18*N18 -> 49.9849 | Q18: 2.023241854 | R18: =R16 -> 1.96806253 | S18: 138 | T18: 0.3248039732 | U18: =U16 -> 0.2973447001 | V18: =V16 -> 6.4 | W18: =W16 -> 4.646010938
A19: =A10 -> Галкин И.Б. | B19: =B16 -> Интерком | C19: =C16 -> 10:45:00 | D19: 2015-04-02 | E19: М75 | F19: =F16 -> Р75.02.86.-25 | G19: =G16 -> 12 | H19: =H16 -> 9 | I19: =I16 -> 745 | J19: =$D$8+$K$10 -> 2015-04-30 | K19: 28 | L19: 834 | M19: 7.07 | N19: 7.07 | O19: 7.07 | P19: 49.9849 | Q19: 2.359977211 | R19: =AVERAGE(Q20:Q21) -> 1.95532884 | S19: 116 | T19: 0.2730236296 | U19: =SUM(T19:T21)/3 -> 0.2612553697 | V19: =V16 -> 6.4 | W19: =(U19*100)/V19 -> 4.082115152
A20: =A19 -> Галкин И.Б. | B20: =B16 -> Интерком | C20: =C16 -> 10:45:00 | D20: 2015-04-02 | E20: М75 | F20: =F16 -> Р75.02.86.-25 | G20: =G16 -> 12 | H20: =H16 -> 9 | I20: =I16 -> 745 | J20: =J19 -> 2015-04-30 | K20: =K19 -> 28 | L20: 637 | M20: 7.07 | N20: 7.07 | O20: 7.07 | P20: 49.9849 | Q20: 1.80252456 | R20: =R19 -> 1.95532884 | S20: 107 | T20: 0.2518407618 | U20: =U19 -> 0.2612553697 | V20: =V19 -> 6.4 | W20: =W19 -> 4.082115152
A21: =A19 -> Галкин И.Б. | B21: =B16 -> Интерком | C21: =C16 -> 10:45:00 | D21: 2015-04-02 | E21: М75 | F21: =F16 -> Р75.02.86.-25 | G21: =G16 -> 12 | H21: =H16 -> 9 | I21: =I16 -> 745 | J21: =J19 -> 2015-04-30 | K21: =K19 -> 28 | L21: 745 | M21: 7.07 | N21: 7.07 | O21: 7.07 | P21: 49.9849 | Q21: 2.10813312 | R21: =R19 -> 1.95532884 | S21: 110 | T21: 0.2589017177 | U21: =U19 -> 0.2612553697 | V21: =V19 -> 6.4 | W21: =W19 -> 4.082115152

Sheet В15
A1: В15
A2: Дата формования | B2: Класс бетонной смеси | C2: Шифр рецепта | D2: Температура бет.смеси, ºС | E2: ОК, см | F2: Плотность бет/см в уплотненном состоянии, кг/м3 | G2: дата испытаний | H2: Возраст, сут | I2: Масса образца, г | J2: Линейные размеры образца, см | M2: Площадь, см² | N2: Плотность образца, г/см³ | O2: Средняя плотность серии образцов, г/см³ | P2: Разрушающая нагрузка в Кн | Q2: Прочность бетона, приведенная к базовому размеру образца, Мпа | R2: Средняя прочность серии образцов, Мпа | S2: Требуемая прочность, Мпа | T2: % от требуемой прочности
J4: Длина | K4: Ширина | L4: Высота
A7: 4 | B7: 5 | C7: 6 | D7: 7 | E7: 8 | F7: 9 | G7: 10 | H7: 11 | I7: 12 | J7: 13 | M7: 14 | N7: 15 | O7: 16 | P7: 17 | Q7: 18 | R7: 19 | S7: 20 | T7: 21

Sheet В25
A1: Дата формования | B1: Класс бетонной смеси | C1: Шифр рецепта | D1: Температура бет.смеси, ºС | E1: ОК, см | F1: Плотность бет/см в уплотненном состоянии, кг/м3 | G1: дата испытаний | H1: Возраст, сут | I1: Масса образца, г | J1: Линейные размеры образца, см | M1: Площадь, см² | N1: Плотность образца, г/см³ | O1: Средняя плотность серии образцов, г/см³ | P1: Разрушающая нагрузка в Кн | Q1: Прочность бетона, приведенная к базовому размеру образца, Мпа | R1: Средняя прочность серии образцов, Мпа | S1: Требуемая прочность, Мпа | T1: % от требуемой прочности
J3: Длина | K3: Ширина | L3: Высота
A6: 4 | B6: 5 | C6: 6 | D6: 7 | E6: 8 | F6: 9 | G6: 10 | H6: 11 | I6: 12 | J6: 13 | M6: 14 | N6: 15 | O6: 16 | P6: 17 | Q6: 18 | R6: 19 | S6: 20 | T6: 21
A7: 1.04. | B7: В25 | C7: Б07.1.02.1-15 | D7: 18 | E7: 19 | F7: 2.338 | G7: 2015-04-08 | H7: 7 | I7: 2348 | J7: 10 | K7: 10 | L7: 10 | M7: =J7*K7 -> 100 | N7: =I7/(J7*K7*L7) -> 2.348 | O7: =AVERAGE(N7:N8) -> 2.352 | P7: 315 | Q7: =((P7*10)/M7)*0.95 -> 29.925 | R7: =(SUM(Q7:Q8)/2) -> 29.3075 | S7: 32.1 | T7: =(R7*100)/S7 -> 91.30062305
D8: =D7 -> 18 | E8: 19 | F8: 2.338 | G8: 2015-04-08 | H8: 7 | I8: 2356 | J8: 10 | K8: 10 | L8: 10 | M8: =J8*K8 -> 100 | N8: =I8/(J8*K8*L8) -> 2.356 | O8: =O7 -> 2.352 | P8: 302 | Q8: =((P8*10)/M8)*0.95 -> 28.69 | R8: =(SUM(Q8:Q9)/2) -> 37.5725 | S8: =S7 -> 32.1 | T8: =T7 -> 91.30062305
D9: =D7 -> 18 | E9: =E7 -> 19 | F9: =F7 -> 2.338 | G9: 2015-04-29 | H9: 28 | I9: 2346 | J9: 10 | K9: 10 | L9: 10 | M9: 100 | N9: 2.346 | O9: =AVERAGE(N9:N10) -> 2.349 | P9: 489 | Q9: 46.455 | R9: 47.215 | S9: =S7 -> 32.1 | T9: =(R9*100)/S9 -> 147.0872274
D10: =D7 -> 18 | E10: =E7 -> 19 | F10: =F7 -> 2.338 | G10: =G9 -> 2015-04-29 | H10: =H9 -> 28 | I10: 2352 | J10: 10 | K10: 10 | L10: 10 | M10: 100 | N10: 2.352 | O10: =O9 -> 2.349 | P10: 505 | Q10: 47.975 | R10: =(SUM(Q10:Q15)/2) -> 23.9875 | S10: =S9 -> 32.1 | T10: =T9 -> 147.0872274

Sheet М75
A1: Дата формования | B1: Класс бетонной смеси | C1: Шифр рецепта | D1: Температура бет.смеси, ºС | E1: ОК, см | F1: Плотность бет/см в уплотненном состоянии, кг/м3 | G1: дата испытаний | H1: Возраст, сут | I1: Масса образца, г | J1: Линейные размеры образца, см | M1: Площадь, см² | N1: Плотность образца, г/см³ | O1: Средняя плотность серии образцов, г/см³ | P1: Разрушающая нагрузка в Кн | Q1: Прочность бетона, приведенная к базовому размеру образца, Мпа | R1: Средняя прочность серии образцов, Мпа | S1: Требуемая прочность, Мпа | T1: % от требуемой прочности
J3: Длина | K3: Ширина | L3: Высота
A6: 4 | B6: 5 | C6: 6 | D6: 7 | E6: 8 | F6: 9 | G6: 10 | H6: 11 | I6: 12 | J6: 13 | M6: 14 | N6: 15 | O6: 16 | P6: 17 | Q6: 18 | R6: 19 | S6: 20 | T6: 21
